Workbook

Sheet ECUACIONES
A1: SIMULACION CORDERAS
A2: GMD
B3: kg PV | C3: A | D3: B | E3: Y=AX+B | F3: GMD = A*UFL + B
B4: 20 | C4: 1418.9 | D4: -887.84
B5: 25 | C5: 1418.9 | D5: -1010.8
B6: 30 | C6: 1000 | D6: -760
B7: 35 | C7: 1071.4 | D7: -935.71
B8: 40 | C8: 500 | D8: -405
A11: UFL | B11: kg PV | C11: A | D11: B | E11: Y=AX+B | F11: UFL = A*GMD + B
B12: 20 | C12: 0.0007 | D12: 0.6267
B13: 25 | C13: 0.0007 | D13: 0.7133
B14: 30 | C14: 0.001 | D14: 0.76
B15: 35 | C15: 0.0009 | D15: 0.88
B16: 40 | C16: 0.002 | D16: 0.81
A18: GMD | F18: Y=AX+B | G18: GMD = A*UFL + B
A19: PERIODO | B19: PESO | C19: A | D19: B | E19: CMD | F19: UF | G19: GMD REC | H19: UFL/GR GMD | I19: UFL MANT | J19: UFL TOT
A20: CRIA | B20: 12 | C20: 932.1 | D20: -468.7 | E20: 714 | F20: 0.73 | G20: 255 | H20: 0.0056
A21: CRIA | B21: 15 | C21: 830.6 | D21: -428.16 | E21: 826 | F21: 0.8 | G21: 275 | H21: 0.0056
A22: CRIA | B22: 18 | C22: 722.04 | D22: -395 | E22: 921 | F22: 0.87 | G22: 295 | H22: 0.0056
A23: CRIA | B23: 20 | C23: 668.57 | D23: -370.87 | E23: 998 | F23: 0.97 | G23: 308 | H23: 0.0056
A24: CRIA | B24: 22 | C24: 669.91 | D24: -390.96 | E24: 1095 | F24: 1.05 | G24: 318 | H24: 0.0056
A25: CRIA | B25: 25 | C25: 573 | D25: -371.61 | E25: 1195 | F25: 1.13 | G25: 316 | H25: 0.0056
A26: CRIA | B26: 27 | C26: 522.88 | D26: -364.85 | E26: 1295 | F26: 1.26 | G26: 341 | H26: 0.0056
A27: CRIA | B27: 30 | C27: 531.72 | D27: -361.74 | E27: 1350 | F27: 1.31 | G27: 325 | H27: 0.0056
A28: RECRIA | B28: 35 | C28: 1071.4 | D28: -935.71 | F28: 1.14 | G28: 120 | H28: 0.0056 | I28: 0.47 | J28: =I28+(G28*H28) -> 1.142
A29: RECRIA | B29: 40 | C29: 500 | D29: -405 | F29: 1.15 | G29: 110 | H29: 0.0056 | I29: 0.52 | J29: =I29+(G29*H29) -> 1.136
A30: RECRIA | B30: 50 | C30: 500 | D30: -405 | F30: 1.18 | G30: 100 | H30: 0.0056 | I30: 0.62 | J30: 1.18
A33: SIMULACION CHIVAS
B34: EDAD | C34: PESO | D34: GMD | E34: UFL | F34: IMS | G34: UFL CREC | H34: UFL MANT | I34: UFL/GR GMD
A35: CRIA | B35: 60 | C35: 11.5 | D35: 160 | E35: 0.9 | F35: 800 | G35: 0.6 | H35: 0.31 | I35: =G35/D35 -> 0.00375
A36: CRIA | B36: 75 | C36: 14 | D36: 160 | E36: 0.92 | F36: 850 | G36: =E36-H36 -> 0.59 | H36: 0.33 | I36: =G36/D36 -> 0.0036875
A37: CRIA | B37: 90 | C37: 16.3 | D37: 160 | E37: 0.93 | F37: 900 | G37: =E37-H37 -> 0.58 | H37: 0.35 | I37: 0.003625
A38: RECRIA | B38: 120 | C38: 20.7 | D38: 140 | E38: 0.92 | F38: 950 | G38: =E38-H38 -> 0.52 | H38: 0.4 | I38: 0.003714285714
A39: RECRIA | B39: 150 | C39: 25.5 | D39: 120 | E39: 0.89 | F39: 1000 | G39: =E39-H39 -> 0.44 | H39: 0.45 | I39: 0.003666666667
A40: RECRIA | B40: 180 | C40: 27.6 | D40: 100 | E40: 0.84 | F40: 1050 | G40: =E40-H40 -> 0.37 | H40: 0.47 | I40: 0.0037
A41: RECRIA | B41: 210 | C41: 30 | D41: 100 | E41: 0.79 | F41: 1070 | G41: =E41-H41 -> 0.3 | H41: 0.49 | I41: 0.003
A42: RECRIA | B42: =B41+30 -> 240 | C42: =C41+(30*(D42/1000)) -> 32.7 | D42: 90 | E42: 0.81 | F42: 1100 | G42: 0.3 | H42: 0.51 | I42: 0.003333333333
A43: RECRIA | B43: =B42+30 -> 270 | C43: =C42+(30*(D43/1000)) -> 35.25 | D43: 85 | E43: 0.84 | F43: 1120 | G43: 0.3 | H43: 0.54 | I43: 0.003529411765
A44: RECRIA | B44: 300 | C44: 37.8 | D44: 85 | E44: 0.86 | F44: 1150 | G44: 0.3 | H44: 0.56 | I44: 0.003529411765
A45: RECRIA | B45: 330 | C45: 40.2 | D45: 80 | E45: 0.88 | F45: 1160 | G45: 0.3 | H45: 0.58 | I45: 0.00375
A46: RECRIA | B46: 360 | C46: 42.6 | D46: 80 | E46: 0.91 | F46: 1200 | G46: 0.3 | H46: 0.61 | I46: 0.00375
A50: L.A.
A51: ESPECIE | B51: RAZA | C51: LR | E51: GMD | F51: IC
A52: CORDERAS | B52: LACAUNE | C52: NANTAMILK SUPREME | D52: =CONCATENATE(B52,C52) -> LACAUNENANTAMILK SUPREME | E52: 280.5 | F52: 1.1
A53: CORDERAS | B53: LACAUNE | C53: NANTAMILK TURBOLAC | D53: =CONCATENATE(B53,C53) -> LACAUNENANTAMILK TURBOLAC | E53: 244.035 | F53: 1.15
A54: CORDERAS | B54: ASSAF | C54: NANTAMILK SUPREME | D54: ASSAFNANTAMILK SUPREME | E54: 272 | F54: 1.12
A55: CORDERAS | B55: ASSAF | C55: NANTAMILK TURBOLAC | D55: ASSAFNANTAMILK TURBOLAC | E55: 236.64 | F55: 1.17
A56: CORDERAS | B56: AUTOCTONA | C56: NANTAMILK SUPREME | D56: AUTOCTONANANTAMILK SUPREME | E56: 233.75 | F56: 1.15
A57: CORDERAS | B57: AUTOCTONA | C57: NANTAMILK TURBOLAC | D57: AUTOCTONANANTAMILK TURBOLAC | E57: 203.3625 | F57: 1.2
A58: CHIVAS | B58: MURCIANA | C58: NANTAMILK SUPREME | D58: MURCIANANANTAMILK SUPREME | E58: 145 | F58: 1.3
A59: CHIVAS | B59: MURCIANA | C59: NANTAMILK TURBOLAC | D59: MURCIANANANTAMILK TURBOLAC | E59: =E58*0.87 -> 126.15 | F59: 1.4
A60: CHIVAS | B60: MALAGUEÑA | C60: NANTAMILK SUPREME | D60: MALAGUEÑANANTAMILK SUPREME | E60: 160 | F60: 1.28
A61: CHIVAS | B61: MALAGUEÑA | C61: NANTAMILK TURBOLAC | D61: MALAGUEÑANANTAMILK TURBOLAC | E61: =E60*0.87 -> 139.2 | F61: 1.33
A62: CHIVAS | B62: FLORIDA | C62: NANTAMILK SUPREME | D62: FLORIDANANTAMILK SUPREME | E62: 160 | F62: 1.28
A63: CHIVAS | B63: FLORIDA | C63: NANTAMILK TURBOLAC | D63: FLORIDANANTAMILK TURBOLAC | E63: =E62*0.87 -> 139.2 | F63: 1.33
A64: CHIVAS | B64: SAANEN | C64: NANTAMILK SUPREME | D64: SAANENNANTAMILK SUPREME | E64: 180 | F64: 1.25
A65: CHIVAS | B65: SAANEN | C65: NANTAMILK TURBOLAC | D65: SAANENNANTAMILK TURBOLAC | E65: =E64*0.87 -> 156.6 | F65: 1.3
A67: CRIA (coeficientes respecto a estandares)
A68: ESPECIE | B68: RAZA | C68: Coef | D68: PESO ADULTO | E68: PV LIMITE CRIA
A69: CORDERAS | B69: LACAUNE | C69: 1 | D69: 75 | E69: 32
A70: CORDERAS | B70: ASSAF | C70: 0.95 | D70: 75 | E70: 32
A71: CORDERAS | B71: AUTOCTONA | C71: 0.75 | D71: 70 | E71: 30
A72: CHIVAS | B72: MURCIANA | C72: 0.87 | D72: 45 | E72: 18
A73: CHIVAS | B73: MALAGUEÑA | C73: 1 | D73: 65 | E73: 20
A74: CHIVAS | B74: FLORIDA | C74: 1 | D74: 65 | E74: 20
A75: CHIVAS | B75: SAANEN | C75: 1.3 | D75: 65 | E75: 23
A78: RECRIA (coeficientes respecto a estandares)
A79: ESPECIE | B79: RAZA | C79: Coef | D79: PESO ADULTO | E79: PV CUBRICION
A80: CORDERAS | B80: LACAUNE | C80: =C69 -> 1 | D80: =D69 -> 75 | E80: =D80*0.65 -> 48.75
A81: CORDERAS | B81: ASSAF | C81: =C70 -> 0.95 | D81: 75 | E81: =D81*0.65 -> 48.75
A82: CORDERAS | B82: AUTOCTONA | C82: 0.75 | D82: 70 | E82: 45.5
A83: CHIVAS | B83: MURCIANA | C83: 0.87 | D83: 50 | E83: 32.5
A84: CHIVAS | B84: MALAGUEÑA | C84: 1 | D84: 60 | E84: 39
A85: CHIVAS | B85: FLORIDA | C85: 1 | D85: 60 | E85: 39
A86: CHIVAS | B86: SAANEN | C86: 1.3 | D86: 65 | E86: 42.25

Sheet HOJA DE DATOS
A1: SIMULACION CORDERAS | B1: =IF('SIMULACION OVINO'!C19="",0,'SIMULACION OVINO'!C19) -> 0.995 | C1: =IF('SIMULACION OVINO'!D19="",0,'SIMULACION OVINO'!D19) -> 0.85 | D1: =B1*C1 -> 0.84575
A2: PERIODO CRIA | B2: =IF('SIMULACION OVINO'!C20="",0,'SIMULACION OVINO'!C20) -> 0.38 | C2: =IF('SIMULACION OVINO'!D20="",0,'SIMULACION OVINO'!D20) -> 0.08 | D2: =B2*C2 -> 0.0304
B3: =IF('SIMULACION OVINO'!C21="",0,'SIMULACION OVINO'!C21) -> 0 | C3: =IF('SIMULACION OVINO'!D21="",0,'SIMULACION OVINO'!D21) -> 0 | D3: 0
B4: =IF('SIMULACION OVINO'!C22="",0,'SIMULACION OVINO'!C22) -> 0 | C4: =IF('SIMULACION OVINO'!D22="",0,'SIMULACION OVINO'!D22) -> 0 | D4: 0
C5: UFL | D5: =SUM(D1:D4) -> 0.87615
C6: PV | D6: =IF('SIMULACION OVINO'!C11="","",('SIMULACION OVINO'!C11+'SIMULACION OVINO'!C12)/2) -> 20
C7: PERIODO | D7: =IF('SIMULACION OVINO'!C9="","",'SIMULACION OVINO'!C9) -> GROW UP | E7: CMD | F7: UFL NEEDS | G7: GMD REC | H7: UFL CREC | I7: UFL MANT | J7: UFL/GR GMD | K7: GMD RECRIA
A8: GMD. EST | B8: =IF(D6="","",VLOOKUP(D6,ECUACIONES!B20:D30,2,TRUE)) -> 668.57 | C8: =IF(D6="","",VLOOKUP(D6,ECUACIONES!B20:D30,3,TRUE)) -> -370.87 | D8: =IF(B8="","",(B8*D5)+C8) -> 214.8976055 | E8: =IF(D6="","",VLOOKUP(D6,ECUACIONES!B20:E30,4,TRUE)) -> 998 | F8: =IF(D6="","",VLOOKUP(D6,ECUACIONES!B20:F30,5,TRUE)) -> 0.97 | G8: =IF(D6="","",VLOOKUP(D6,ECUACIONES!B20:G30,6,TRUE)) -> 308 | H8: =IF(J8="","",D5-I8) -> 0.87615 | I8: =IF(D6="","",VLOOKUP($D$6,ECUACIONES!$B$20:$J$30,8,TRUE)) -> 0 | J8: =IF(D6="","",VLOOKUP($D$6,ECUACIONES!$B$20:$J$30,7,TRUE)) -> 0.0056 | K8: =IF(H8="","",H8/J8) -> 156.4553571
A9: kg ganados | B9: =IF('SIMULACION OVINO'!C11="","",'SIMULACION OVINO'!C12-'SIMULACION OVINO'!C11) -> 16 | E9: COBERTURA - NEEDS | F9: =IF(D5=0,"",D5-F8) -> -0.09385 | G9: =IF(D7="","",IF(D7="CRIA",D8-G8,K8-G8)) -> -151.5446429
A10: dias | B10: =IF(B9="","",IF(D7="CRIA",(B9/(D8/1000)),(B9*1000)/K8)) -> 102.2655938
A13: UFL | B13: PV | C13: GMD
B14: =IF('SIMULACION OVINO'!H12="","",('SIMULACION OVINO'!H12+'SIMULACION OVINO'!H11)/2) ->  | C14: =IF('SIMULACION OVINO'!H20="","",'SIMULACION OVINO'!H20) -> 
A15: UFL | B15: =IF(B14="","",VLOOKUP(B14,ECUACIONES!B12:D16,2,TRUE)) ->  | C15: =IF(B14="","",VLOOKUP(B14,ECUACIONES!B12:D16,3,TRUE)) ->  | D15: =IF(B15="","",(B15*C14)+C15) -> 
A18: =IF('SIMULACION OVINO'!H24="",0,'SIMULACION OVINO'!H24) -> 0 | B18: =IF('SIMULACION OVINO'!I24="",0,'SIMULACION OVINO'!I24) -> 0 | C18: =A18*B18 -> 0
A19: =IF('SIMULACION OVINO'!H25="",0,'SIMULACION OVINO'!H25) -> 0 | B19: =IF('SIMULACION OVINO'!I25="",0,'SIMULACION OVINO'!I25) -> 0 | C19: =A19*B19 -> 0
A20: =IF('SIMULACION OVINO'!H26="",0,'SIMULACION OVINO'!H26) -> 0 | B20: =IF('SIMULACION OVINO'!I26="",0,'SIMULACION OVINO'!I26) -> 0 | C20: 0
A21: =IF('SIMULACION OVINO'!H27="",0,'SIMULACION OVINO'!H27) -> 0 | B21: =IF('SIMULACION OVINO'!I27="",0,'SIMULACION OVINO'!I27) -> 0 | C21: 0
B22: UFL | C22: =SUM(C18:C21) -> 0
A25: pienso simulacion 1 | B25: =IF('SIMULACION OVINO'!B19="","",'SIMULACION OVINO'!B19) -> NANTACOR | C25: =IF(B25="","",VLOOKUP(B25,PIENSOS!$A$11:$D$29,4,FALSE)) -> 0.995
A26: pienso simulacion 2 | B26: =IF('SIMULACION OVINO'!G24="","",'SIMULACION OVINO'!G24) ->  | C26: =IF(B26="","",VLOOKUP(B26,PIENSOS!$A$11:$D$29,4,FALSE)) -> 
A30: PERIOD | B30: PESOS | C30: GMD | D30: =IF('SIMULACION OVINO'!C9="","",'SIMULACION OVINO'!C9) -> GROW UP | E30: =IF(D30="","",VLOOKUP(D30,A31:B32,2,FALSE)) -> 12 a 30
A31: GROW UP | B31: 12 a 30 | C31: > 280 gr/dia | E31: =IF(D30="","",VLOOKUP(D30,A31:C32,3,FALSE)) -> > 280 gr/dia
A32: REPLAC.PERIOD | B32: 30 a 50 | C32: 80-110 gr/dia
B36: UF
A37: FEED 1
A38: FED 2
A39: FORAGE1 (0.75UFL) | B39: 0.75
A40: FORAGE2 (0.65 UFL) | B40: 0.65
A41: STRAW | B41: 0.37
A42: CEREAL1
A43: CEREAL2
A47: SIMULACION CHIVAS | B47: =IF('SIMULACION CAPRINO'!C19="",0,'SIMULACION CAPRINO'!C19) -> 0 | C47: =IF('SIMULACION CAPRINO'!D19="",0,'SIMULACION CAPRINO'!D19) -> 0 | D47: =B47*C47 -> 0
A48: PERIODO CRIA | B48: =IF('SIMULACION CAPRINO'!C20="",0,'SIMULACION CAPRINO'!C20) -> 0 | C48: =IF('SIMULACION CAPRINO'!D20="",0,'SIMULACION CAPRINO'!D20) -> 0 | D48: =B48*C48 -> 0
B49: =IF('SIMULACION CAPRINO'!C21="",0,'SIMULACION CAPRINO'!C21) -> 0 | C49: =IF('SIMULACION CAPRINO'!D21="",0,'SIMULACION CAPRINO'!D21) -> 0 | D49: 0
B50: =IF('SIMULACION CAPRINO'!C22="",0,'SIMULACION CAPRINO'!C22) -> 0 | C50: =IF('SIMULACION CAPRINO'!D22="",0,'SIMULACION CAPRINO'!D22) -> 0 | D50: 0
C51: UFL | D51: =SUM(D47:D50) -> 0
C52: PV | D52: =IF('SIMULACION CAPRINO'!C11="","",('SIMULACION CAPRINO'!C11+'SIMULACION CAPRINO'!C12)/2) -> 
C53: PERIODO | D53: =IF('SIMULACION CAPRINO'!C9="","",'SIMULACION CAPRINO'!C9) ->  | E53: CMD | F53: UFL | G53: GMD REC | H53: UFL CREC | I53: UFL MANT | J53: UFL/GR GMD
A54: GMD EST | D54: =IF(D51=0,"",(D51-I54)/J54) ->  | E54: =IF(D52="","",VLOOKUP(D52,ECUACIONES!C35:F46,4,TRUE)) ->  | F54: =IF(D52="","",VLOOKUP(D52,ECUACIONES!C35:F46,3,TRUE)) ->  | G54: =IF(D52="","",VLOOKUP(D52,ECUACIONES!C35:F46,2,TRUE)) ->  | H54: =IF(D52="","",VLOOKUP(D52,ECUACIONES!C35:H46,5,TRUE)) ->  | I54: =IF(D52="","",VLOOKUP(D52,ECUACIONES!C35:H46,6,TRUE)) ->  | J54: =IF(D52="","",VLOOKUP(D52,ECUACIONES!C35:I46,7,TRUE)) -> 
A55: kg ganados | B55: =IF('SIMULACION CAPRINO'!C11="","",'SIMULACION CAPRINO'!C12-'SIMULACION CAPRINO'!C11) ->  | E55: COBERTURA - NEEDS | F55: =IF(D51=0,"",D51-F54) ->  | G55: =IF(D54="","",D54-G54) -> 
A56: dias | B56: =IF(B55="","",(B55/(D54/1000))) -> 
A59: UFL | B59: PV | C59: GMD
B60: =IF('SIMULACION OVINO'!H54="","",('SIMULACION OVINO'!H54+'SIMULACION OVINO'!H53)/2) ->  | C60: =IF('SIMULACION OVINO'!H62="","",'SIMULACION OVINO'!H62) -> 
A61: UFL | B61: =IF(B60="","",VLOOKUP(B60,ECUACIONES!B58:E62,2,TRUE)) ->  | C61: =IF(B60="","",VLOOKUP(B60,ECUACIONES!B58:E62,3,TRUE)) ->  | D61: =IF(B61="","",(B61*C60)+C61) -> 
A64: =IF('SIMULACION OVINO'!H66="",0,'SIMULACION OVINO'!H66) -> 0 | B64: =IF('SIMULACION OVINO'!I66="",0,'SIMULACION OVINO'!I66) -> 0 | C64: =A64*B64 -> 0
A65: =IF('SIMULACION OVINO'!H67="",0,'SIMULACION OVINO'!H67) -> 0 | B65: =IF('SIMULACION OVINO'!I67="",0,'SIMULACION OVINO'!I67) -> 0 | C65: =A65*B65 -> 0
A66: =IF('SIMULACION OVINO'!H68="",0,'SIMULACION OVINO'!H68) -> 0 | B66: =IF('SIMULACION OVINO'!I68="",0,'SIMULACION OVINO'!I68) -> 0 | C66: 0
A67: =IF('SIMULACION OVINO'!H69="",0,'SIMULACION OVINO'!H69) -> 0 | B67: =IF('SIMULACION OVINO'!I69="",0,'SIMULACION OVINO'!I69) -> 0 | C67: 0
B68: UFL | C68: =SUM(C64:C67) -> 0
A71: pienso simulacion 1 | B71: =IF('SIMULACION CAPRINO'!B62="","",'SIMULACION CAPRINO'!B62) ->  | C71: =IF(B71="","",VLOOKUP(B71,PIENSOS!$A$11:$D$29,4,FALSE)) -> 
A75: PERIODO | B75: PESOS | C75: GMD | D75: =IF('SIMULACION CAPRINO'!C9="","",'SIMULACION CAPRINO'!C9) ->  | E75: =IF(D75="","",VLOOKUP(D75,A76:B77,2,FALSE)) -> 
A76: CRIA | B76: 11.5 a 25 | C76: > 150 gr/dia | E76: =IF(D75="","",VLOOKUP(D75,A76:C77,3,FALSE)) -> 
A77: RECRIA | B77: 25 a 45 Kg PV | C77: 80-120 gr/dia
A80: ESQUEMA LA,CRIA,RECRIA
A82: CORDERAS | B82: =IF('DATOS RECRIA OVINO'!C11="","",'DATOS RECRIA OVINO'!C11) -> LACAUNE | C82: =IF('DATOS RECRIA OVINO'!$C$16="","",'DATOS RECRIA OVINO'!$C$16) -> NANTAMILK SUPREME | D82: =CONCATENATE(B82,C82) -> LACAUNENANTAMILK SUPREME | E82: =IF('DATOS RECRIA OVINO'!C12="","",'DATOS RECRIA OVINO'!C12) -> 2016-10-12
E83: RECOMENDADO GRAL. | F83: FACTOR CORRECTOR | G83: RECOMENDADO RAZA
A84: PESOS (KG. PESO VIVO) | B84: FASE LACTANCIA | C84: PESO INICIAL | D84: =IF('DATOS RECRIA OVINO'!D30="","",'DATOS RECRIA OVINO'!D30) -> 4 | E84: 4.5 | F84: =VLOOKUP(B82,ECUACIONES!B69:C75,2,FALSE) -> 1 | G84: =IF(D84="","",E84*F84) -> 4.5
C85: PESO FINAL | D85: =IF('DATOS RECRIA OVINO'!D31="","",'DATOS RECRIA OVINO'!D31) -> 12 | E85: 13 | F85: =VLOOKUP(B82,ECUACIONES!B69:E75,2,FALSE) -> 1 | G85: =IF(D85="","",E85*F85) -> 13
B86: FASE CRIA | C86: PESO INICIAL | D86: =IF('DATOS RECRIA OVINO'!D32="","",'DATOS RECRIA OVINO'!D32) -> 12 | G86: =IF(D86="","",G85) -> 13
C87: PESO FINAL | D87: =IF('DATOS RECRIA OVINO'!D33="","",'DATOS RECRIA OVINO'!D33) -> 33 | G87: =VLOOKUP(B82,ECUACIONES!B69:E75,4,FALSE) -> 32
B88: RECRIA FASE 1 | C88: PESO INICIAL | D88: =IF('DATOS RECRIA OVINO'!D34="","",'DATOS RECRIA OVINO'!D34) -> 33 | G88: =IF(D88="","",G87) -> 32
C89: PESO FINAL | D89: =IF('DATOS RECRIA OVINO'!D35="","",'DATOS RECRIA OVINO'!D35) -> 45 | G89: =VLOOKUP(B82,ECUACIONES!B80:E86,4,FALSE) -> 48.75
B90: RECRIA FASE 2 | C90: PESO INICIAL | D90: =IF('DATOS RECRIA OVINO'!D36="","",'DATOS RECRIA OVINO'!D36) -> 45 | G90: =IF(D90="","",G89) -> 48.75
C91: PESO FINAL | D91: =IF('DATOS RECRIA OVINO'!D37="","",'DATOS RECRIA OVINO'!D37) -> 60
A94: LACTANCIA
A95: KILOS A REPONER | B95: =D85-D84 -> 8 | D95: =IF('DATOS RECRIA OVINO'!B16="","",'DATOS RECRIA OVINO'!B16) -> MILK REPLACER | E95: =IF('DATOS RECRIA OVINO'!C16="","",'DATOS RECRIA OVINO'!C16) -> NANTAMILK SUPREME | F95: =IF('DATOS RECRIA OVINO'!D16="","",'DATOS RECRIA OVINO'!D16) -> 2200
A96: CONSUMO PRESTARTER ST | B96: 1.5 | D96: =IF('DATOS RECRIA OVINO'!B17="","",'DATOS RECRIA OVINO'!B17) -> PRESTARTER | E96: =IF('DATOS RECRIA OVINO'!C17="","",'DATOS RECRIA OVINO'!C17) -> LACTACOR COPOS | F96: =IF('DATOS RECRIA OVINO'!D17="","",'DATOS RECRIA OVINO'!D17) -> 400
A97: FACTOR CORREC RAZA | B97: =VLOOKUP(B82,ECUACIONES!B69:C75,2,FALSE) -> 1 | D97: =IF('DATOS RECRIA OVINO'!B18="","",'DATOS RECRIA OVINO'!B18) -> GROW UP CF | E97: =IF('DATOS RECRIA OVINO'!C18="","",'DATOS RECRIA OVINO'!C18) -> NANTACOR | F97: =IF('DATOS RECRIA OVINO'!D18="","",'DATOS RECRIA OVINO'!D18) -> 275
A98: CONSUMO REAL PREST | B98: =IF('DATOS RECRIA OVINO'!$C$17="",0,B96*B97) -> 1.5 | D98: =IF('DATOS RECRIA OVINO'!B19="","",'DATOS RECRIA OVINO'!B19) -> REPLACEMENT 1 CF | E98: =IF('DATOS RECRIA OVINO'!C19="","",'DATOS RECRIA OVINO'!C19) -> OVIRECRIA | F98: =IF('DATOS RECRIA OVINO'!D19="","",'DATOS RECRIA OVINO'!D19) -> 230
A99: IC LECHE | B99: =VLOOKUP(D82,ECUACIONES!D52:F65,3,FALSE) -> 1.1 | D99: =IF('DATOS RECRIA OVINO'!B20="","",'DATOS RECRIA OVINO'!B20) -> REPLACEMENT 2 CF | E99: =IF('DATOS RECRIA OVINO'!C20="","",'DATOS RECRIA OVINO'!C20) -> OVIRECRIA CONT. | F99: =IF('DATOS RECRIA OVINO'!D20="","",'DATOS RECRIA OVINO'!D20) -> 200
A100: CONSUMO TOTAL LR TEOR | B100: =B95*B99 -> 8.8 | D100: =IF('DATOS RECRIA OVINO'!B21="","",'DATOS RECRIA OVINO'!B21) ->  | E100: =IF('DATOS RECRIA OVINO'!C21="","",'DATOS RECRIA OVINO'!C21) ->  | F100: =IF('DATOS RECRIA OVINO'!D21="","",'DATOS RECRIA OVINO'!D21) -> 
A101: GMD | B101: =VLOOKUP(D82,ECUACIONES!D52:F65,2,FALSE) -> 280.5
A102: DIAS | B102: =B95/(B101/1000) -> 28.52049911 | D102: =IF('DATOS RECRIA OVINO'!B23="","",'DATOS RECRIA OVINO'!B23) -> GROW UP PERIOD | E102: =IF('DATOS RECRIA OVINO'!C23="","",'DATOS RECRIA OVINO'!C23) -> STRAW | F102: =IF('DATOS RECRIA OVINO'!D23="","",'DATOS RECRIA OVINO'!D23) -> 45
A103: FECHA ENTRADA | B103: =E82 -> 2016-10-12 | D103: =IF('DATOS RECRIA OVINO'!B24="","",'DATOS RECRIA OVINO'!B24) -> REPLACEMENT PERIOD 1 | E103: =IF('DATOS RECRIA OVINO'!C24="","",'DATOS RECRIA OVINO'!C24) -> FORAGE2 (0.65 UFL) | F103: =IF('DATOS RECRIA OVINO'!D24="","",'DATOS RECRIA OVINO'!D24) -> 135
A104: FECHA SALIDA | B104: =B103+B102 -> 2016-11-09T12:29:31.123 | D104: =IF('DATOS RECRIA OVINO'!B25="","",'DATOS RECRIA OVINO'!B25) ->  | E104: =IF('DATOS RECRIA OVINO'!C25="","",'DATOS RECRIA OVINO'!C25) -> STRAW | F104: =IF('DATOS RECRIA OVINO'!D25="","",'DATOS RECRIA OVINO'!D25) -> 45
A105: COSTE LECHE | B105: =(F95/1000)*B100 -> 19.36 | D105: =IF('DATOS RECRIA OVINO'!B26="","",'DATOS RECRIA OVINO'!B26) -> REPLACEMENT PERIOD 2 | E105: =IF('DATOS RECRIA OVINO'!C26="","",'DATOS RECRIA OVINO'!C26) -> FORAGE2 (0.65 UFL) | F105: =IF('DATOS RECRIA OVINO'!D26="","",'DATOS RECRIA OVINO'!D26) -> 135
A106: COSTE PRESTARTER | B106: =IF(F96="","",(F96/1000)*B98) -> 0.6 | D106: =IF('DATOS RECRIA OVINO'!B27="","",'DATOS RECRIA OVINO'!B27) ->  | E106: =IF('DATOS RECRIA OVINO'!C27="","",'DATOS RECRIA OVINO'!C27) -> STRAW | F106: =IF('DATOS RECRIA OVINO'!D27="","",'DATOS RECRIA OVINO'!D27) -> 45
A107: COSTE TOTAL | B107: =SUM(B105:B106) -> 19.96 | D107: =IF('DATOS RECRIA OVINO'!B28="","",'DATOS RECRIA OVINO'!B28) ->  | E107: =IF('DATOS RECRIA OVINO'!C28="","",'DATOS RECRIA OVINO'!C28) ->  | F107: =IF('DATOS RECRIA OVINO'!D28="","",'DATOS RECRIA OVINO'!D28) -> 
A109: FASE CRIA | E109: GMD | F109: KG PIENSO | G109: DIAS FASE | H109: DIF | I109: CT PIENSO | J109: EUROS PIENSO | K109: EUROS TOTAL | L109: AHORRO
A110: KILOS A REPONER | B110: =D87-D86 -> 21 | C110: =((D87-D86)/2)+D86 -> 22.5 | D110: ='DATOS RECRIA OVINO'!B40 -> 0 | E110: =IF('DATOS RECRIA OVINO'!C40="","",'DATOS RECRIA OVINO'!C40) ->  | F110: =IF('DATOS RECRIA OVINO'!D40="","",'DATOS RECRIA OVINO'!D40) ->  | G110: =IF(E110="","",B110/(E110/1000)) ->  | H110: =IF(G110="","",G110-B121) ->  | I110: =IF(F110="","",F110*G110) ->  | J110: =IF(I110="","",I110*(F97/1000)) ->  | K110: =IF(J110="","",J110+B125) ->  | L110: =IF(K110="","",K110-B126) -> 
A111: UF PIENSO | B111: =VLOOKUP(E97,PIENSOS!C11:D20,2,FALSE) -> 0.995 | C111: =B111 -> 0.995 | D111: ='DATOS RECRIA OVINO'!B41 -> 0 | E111: =IF('DATOS RECRIA OVINO'!C41="","",'DATOS RECRIA OVINO'!C41) ->  | F111: =IF('DATOS RECRIA OVINO'!D41="","",'DATOS RECRIA OVINO'!D41) ->  | G111: =IF(E111="","",B132/(E111/1000)) ->  | H111: =IF(G111="","",G111-B150) ->  | I111: =IF(F111="","",F111*G111) ->  | J111: =IF(I111="","",I111*(F98/1000)) ->  | K111: =IF(J111="","",J111+B162+B163) ->  | L111: =IF(K111="","",K111-B165) -> 
A112: UF PAJA | B112: ='HOJA DE DATOS'!B41*1000 -> 370 | C112: =B112/1000 -> 0.37
A113: CMD PIENSO | B113: =VLOOKUP($C$110,ECUACIONES!$B$20:$E$27,4,TRUE) -> 1095 | C113: =C111*(B113/1000) -> 1.089525 | G113: SUMA DIAS | H113: =SUM(H110:H112) -> 0 | K113: EUROS TOTAL | L113: =SUM(L110:L112) -> 0
A114: CMD PAJA | B114: 100 | C114: =C112*(B114/1000) -> 0.037
A115: UF RACION | B115: =SUM(C113:C114) -> 1.126525 | E115: SIMULACION ALTERNATIVA | F115: HACER SIMULACION
A116: FACTOR A | B116: =VLOOKUP($C$110,ECUACIONES!$B$20:$E$27,2,TRUE) -> 669.91 | F116: =IF('DATOS RECRIA OVINO'!$H$40="","",1) -> 
A117: FACTOR B | B117: =VLOOKUP($C$110,ECUACIONES!$B$20:$E$27,3,TRUE) -> -390.96
A118: GMD ST | B118: =((B116*B115)+B117) -> 363.7103628
A119: FACTOR CORRECTOR | B119: =VLOOKUP(B82,ECUACIONES!B69:C75,2,FALSE) -> 1
A120: GMD REAL | B120: =B118*B119 -> 363.7103628
A121: DIAS PERIODO | B121: =IF(F116=1,G110,B110/(B120/1000)) -> 57.73825041
A122: CONSUMO PIENSO | B122: =(B113*B121)/1000 -> 63.2233842
A123: CONSUMO PAJA | B123: =(B114/1000)*B121 -> 5.773825041
A124: COSTO PIENSO | B124: =B122*(F97/1000) -> 17.38643065
A125: COSTO PAJA | B125: =B123*(F102/1000) -> 0.2598221268
A126: COSTO TOTAL | B126: =IF(F116=1,K110,SUM(B124:B125)) -> 17.64625278
A127: FECHA ENTRADA | B127: =B104 -> 2016-11-09T12:29:31.123
A128: FECHA SALIDA | B128: =B127+B121 -> 2017-01-06T06:12:35.958
A131: RECRIA FASE 1
A132: KILOS A REPONER | B132: =D89-D88 -> 12 | C132: =((D89-D88)/2)+D88 -> 39
A133: UF PIENSO | B133: =VLOOKUP(E98,PIENSOS!C11:D29,2,FALSE) -> 0.88
A134: UF FORRAJE 1 | B134: =VLOOKUP(E103,$A$39:$B$41,2,FALSE) -> 0.65
A135: UF PAJA ADLIB | B135: =B41 -> 0.37
A136: NECESIDADES UFL | B136: =VLOOKUP(C132,ECUACIONES!B20:G30,5,TRUE) -> 1.14
A137: CMD PAJA ADLIB | B137: 0.5
A138: UF PAJA ADLIB | B138: =B137*B41 -> 0.185
A139: DIF UF | B139: =B136-B138 -> 0.955
A140: CMD PIENSO (PAJA AD LIB) | B140: =B139/B133 -> 1.085227273
A141: CMD PIEBNSO REAL | B141: =(IF($B$134>$B$41,0.6,B140)) -> 0.6
A142: CONSUMO PAJA REAL | B142: =IF($B$134>$B$41,(B137/2),B137) -> 0.25
A143: APORTE UF PIENSO | B143: =B141*B133 -> 0.528
A144: APORTE UF PAJA | B144: =(B142*B135) -> 0.0925
A145: DIFER NEEDS | B145: =IF(B144="","",B136-(B143+B144)) -> 0.5195
A146: CONSUMO FORR 1 | B146: =IF(B145="","",B145/B134) -> 0.7992307692
A147: GMD REC ST | B147: =(VLOOKUP(C132,ECUACIONES!B20:G30,6,TRUE)) -> 120
A148: FACTOR CORRECTOR RAZA | B148: =VLOOKUP($B$82,ECUACIONES!$B$80:$E$86,2,FALSE) -> 1
A149: GMD REAL | B149: =IF(F116="",(B147*B148),E111) -> 120
A150: DIAS | B150: =IF(F116=1,G111,B132/(B149/1000)) -> 100
A151: FECHA ENTRADA | B151: =B128 -> 2017-01-06T06:12:35.958
A152: FECHA SALIDA | B152: =B151+B150 -> 2017-04-16T06:12:35.958
A153: PESO REC CUBRICION | B153: =VLOOKUP($B$82,ECUACIONES!$B$80:$E$86,4,FALSE) -> 48.75
A154: KILOS A REPONER | B154: =B153-D88 -> 15.75
A155: DIAS | B155: =B154/(B149/1000) -> 131.25
A156: FECHA CUBRICION | B156: =B151+B155 -> 2017-05-17T12:12:35.958
A157: DIAS DESDE INICIO | B157: =B156-E82 -> 217.5087495
A158: MESES DESDE INICIO | B158: =B157/30 -> 7.250291651
A159: CT FORRAJE 1 | B159: =IF(B146="","",B146*B155) -> 104.8990385
A160: CT PAJA | B160: =IF(E104="",(B137*B150),(B155*B142)) -> 32.8125
A161: CT PIENSO | B161: =B155*B141 -> 78.75
A162: COSTE FORRAJE 1 | B162: =IF(B159="","",(B159*F103)/1000) -> 14.16137019
A163: COSTE PAJA | B163: =IF(E104="",((F103/1000)*B160),(B160*F104)/1000) -> 1.4765625
A164: COSTE PIENSO | B164: =B161*(F98/1000) -> 18.1125
A165: COSTE TOTAL | B165: =IF(F116=1,K111,SUM(B162:B164)) -> 33.75043269
A172: RECRIA FASE 2
A173: FECHA PREVISTA PARTO | B173: =B156+150 -> 2017-10-14T12:12:35.958
A174: DIAS DESDE INICIO | B174: =B173-E82 -> 367.5087495
A175: MESES DESDE INICIO | B175: =B174/30 -> 12.25029165
A176: DIAS DE PREPARTO | B176: 45
A177: FECHA FIN DE RECRIA | B177: =B173-B176 -> 2017-08-30T12:12:35.958
A178: DIAS DURACION FASE 2 | B178: =B177-B152 -> 136.25
A179: KILOS A REPONER | B179: =D91-D90 -> 15 | C179: =((D91-D90)/2)+D90 -> 52.5
A180: GMD ST REC | B180: =IF('DATOS RECRIA OVINO'!C42="",(VLOOKUP(C179,ECUACIONES!B20:G30,6,TRUE)),'DATOS RECRIA OVINO'!C42) -> 100
A181: FACTOR CORRECTOR RAZA | B181: =VLOOKUP($B$82,ECUACIONES!$B$80:$E$86,2,FALSE) -> 1
A182: GMD REAL | B182: =B180*B181 -> 100
A183: PESO AL FINAL RECRIA | B183: =((B182/1000)*B178)+D90 -> 58.625
A184: NECESIDADES UF | B184: =VLOOKUP(C179,ECUACIONES!B20:G30,5,TRUE) -> 1.18
A185: UF PIENSO | B185: =VLOOKUP(E99,PIENSOS!C11:D26,2,FALSE) -> 0.82
A186: UF FORRAJE 1 | B186: =VLOOKUP(E105,$A$39:$B$41,2,FALSE) -> 0.65
A187: UF PAJA | B187: =B41 -> 0.37
A188: CONSUMO PAJA AD LIB | B188: 0.85
A189: UF PAJA AD LIB | B189: =B188*B41 -> 0.3145
A190: DIF UF (CON PAJA AD LIB) | B190: =B184-B189 -> 0.8655
A191: CMD PIENSO (PAJA AD L) | B191: =B190/B185 -> 1.055487805
A192: CMD PIENSO RACIONADO | B192: 0.6
A193: CMD PAJA RAC | B193: =B188/2 -> 0.425
A194: UFL PIENSO | B194: =B192*B185 -> 0.492
A195: UFL FORRAJE | B195: =B193*B187 -> 0.15725
A196: COBERTURA UF RAC | B196: =SUM(B194:B195) -> 0.64925
A197: DIF NEEDS | B197: =B184-B196 -> 0.53075
A198: CMD FORRAJE 1 | B198: =IF(B186=B41,0,B197/B186) -> 0.8165384615
A199: CMD PAJA FINAL | B199: =IF(E106="",B188,B193) -> 0.425
A200: CMD PIENSO FINAL | B200: =IF(E106="",B191,B192) -> 0.6
A201: CT FORRAJE 1 | B201: =IF(B198="","",B198*B178) -> 111.2533654
A202: CT PAJA | B202: =B199*B178 -> 57.90625
A203: CT PIENSO | B203: =B200*B178 -> 81.75
A204: COSTE FORRAJE | B204: =IF(B201="",0,B201*(F105/1000)) -> 15.01920433
A205: PRECIO PAJA | B205: =IF(E106="",F105,F106) -> 45
A206: COSTE PAJA | B206: =(B205/1000)*B202 -> 2.60578125
A207: COSTE PIENSO | B207: =B203*(F99/1000) -> 16.35
A208: COSTE TOTAL | B208: =B207+B206+B204 -> 33.97498558
A217: CHIVAS | B217: =IF('DATOS RECRIA CAPRINO'!C11="","",'DATOS RECRIA CAPRINO'!C11) -> SAANEN | C217: =IF('DATOS RECRIA CAPRINO'!$C$16="","",'DATOS RECRIA CAPRINO'!$C$16) -> NANTAMILK SUPREME | D217: =CONCATENATE(B217,C217) -> SAANENNANTAMILK SUPREME | E217: =IF('DATOS RECRIA CAPRINO'!C12="","",'DATOS RECRIA CAPRINO'!C12) -> 2015-11-11
E218: RECOMENDADO GRAL. | F218: FACTOR CORRECTOR | G218: RECOMENDADO RAZA
A219: PESOS (KG. PESO VIVO) | B219: FASE LACTANCIA | C219: PESO INICIAL | D219: =IF('DATOS RECRIA CAPRINO'!D30="","",'DATOS RECRIA CAPRINO'!D30) -> 3.5 | E219: 2.8 | F219: =VLOOKUP(B217,ECUACIONES!B75:C88,2,FALSE) -> 1.3 | G219: =IF(D219="","",E219*F219) -> 3.64
C220: PESO FINAL | D220: =IF('DATOS RECRIA CAPRINO'!D31="","",'DATOS RECRIA CAPRINO'!D31) -> 14 | E220: 11 | F220: =VLOOKUP(B217,ECUACIONES!B68:E75,2,FALSE) -> 1.3 | G220: =IF(D220="","",E220*F220) -> 14.3
B221: FASE CRIA | C221: PESO INICIAL | D221: =IF('DATOS RECRIA CAPRINO'!D32="","",'DATOS RECRIA CAPRINO'!D32) -> 14 | G221: =IF(D221="","",G220) -> 14.3
C222: PESO FINAL | D222: =IF('DATOS RECRIA CAPRINO'!D33="","",'DATOS RECRIA CAPRINO'!D33) -> 22 | G222: =VLOOKUP(B217,ECUACIONES!B69:E75,4,FALSE) -> 23
B223: RECRIA FASE 1 | C223: PESO INICIAL | D223: =IF('DATOS RECRIA CAPRINO'!D34="","",'DATOS RECRIA CAPRINO'!D34) -> 22 | G223: =IF(D223="","",G222) -> 23
C224: PESO FINAL | D224: =IF('DATOS RECRIA CAPRINO'!D35="","",'DATOS RECRIA CAPRINO'!D35) -> 42 | G224: =VLOOKUP(B217,ECUACIONES!B79:E86,4,FALSE) -> 42.25
B225: RECRIA FASE 2 | C225: PESO INICIAL | D225: =IF('DATOS RECRIA CAPRINO'!D36="","",'DATOS RECRIA CAPRINO'!D36) -> 42 | G225: =IF(D225="","",G224) -> 42.25
C226: PESO FINAL | D226: =IF('DATOS RECRIA CAPRINO'!D37="","",'DATOS RECRIA CAPRINO'!D37) -> 54 | G226: =IF(D226="","",B318) -> 53.12
A229: LACTANCIA
A230: KILOS A REPONER | B230: =D220-D219 -> 10.5 | D230: =IF('DATOS RECRIA CAPRINO'!B16="","",'DATOS RECRIA CAPRINO'!B16) -> MILK REPLACER | E230: =IF('DATOS RECRIA CAPRINO'!C16="","",'DATOS RECRIA CAPRINO'!C16) -> NANTAMILK SUPREME | F230: =IF('DATOS RECRIA CAPRINO'!D16="","",'DATOS RECRIA CAPRINO'!D16) -> 2500
A231: CONSUMO PRESTARTER ST | B231: 1.2 | D231: =IF('DATOS RECRIA CAPRINO'!B17="","",'DATOS RECRIA CAPRINO'!B17) -> PRESTARTER | E231: =IF('DATOS RECRIA CAPRINO'!C17="","",'DATOS RECRIA CAPRINO'!C17) -> LACTACOR COPOS | F231: =IF('DATOS RECRIA CAPRINO'!D17="","",'DATOS RECRIA CAPRINO'!D17) -> 400
A232: FACTOR CORREC RAZA | B232: =VLOOKUP(B217,ECUACIONES!B69:C75,2,FALSE) -> 1.3 | D232: =IF('DATOS RECRIA CAPRINO'!B18="","",'DATOS RECRIA CAPRINO'!B18) -> GROW UP CF | E232: =IF('DATOS RECRIA CAPRINO'!C18="","",'DATOS RECRIA CAPRINO'!C18) -> NANTACOR | F232: =IF('DATOS RECRIA CAPRINO'!D18="","",'DATOS RECRIA CAPRINO'!D18) -> 290
A233: CONSUMO REAL PREST | B233: =IF('DATOS RECRIA CAPRINO'!$C$17="",0,B231*B232) -> 1.56 | D233: =IF('DATOS RECRIA CAPRINO'!B19="","",'DATOS RECRIA CAPRINO'!B19) -> REPLACEMENT 1 CF | E233: =IF('DATOS RECRIA CAPRINO'!C19="","",'DATOS RECRIA CAPRINO'!C19) -> CAPRIRECRIA | F233: =IF('DATOS RECRIA CAPRINO'!D19="","",'DATOS RECRIA CAPRINO'!D19) -> 250
A234: IC LECHE | B234: =VLOOKUP(D217,ECUACIONES!D52:F65,3,FALSE) -> 1.25 | D234: =IF('DATOS RECRIA CAPRINO'!B20="","",'DATOS RECRIA CAPRINO'!B20) -> REPLACEMENT 2 CF | E234: =IF('DATOS RECRIA CAPRINO'!C20="","",'DATOS RECRIA CAPRINO'!C20) -> CAPRIRECRIA CONT. | F234: =IF('DATOS RECRIA CAPRINO'!D20="","",'DATOS RECRIA CAPRINO'!D20) -> 225
A235: CONSUMO TOTAL LR TEOR | B235: =B230*B234 -> 13.125 | D235: =IF('DATOS RECRIA CAPRINO'!B21="","",'DATOS RECRIA CAPRINO'!B21) ->  | E235: =IF('DATOS RECRIA CAPRINO'!C21="","",'DATOS RECRIA CAPRINO'!C21) ->  | F235: =IF('DATOS RECRIA CAPRINO'!D21="","",'DATOS RECRIA CAPRINO'!D21) -> 
A236: GMD | B236: =VLOOKUP(D217,ECUACIONES!D53:F75,2,FALSE) -> 180 | D236: =IF('DATOS RECRIA CAPRINO'!B22="","",'DATOS RECRIA CAPRINO'!B22) ->  | E236: =IF('DATOS RECRIA CAPRINO'!C22="","",'DATOS RECRIA CAPRINO'!C22) -> PRODUCT | F236: =IF('DATOS RECRIA CAPRINO'!D22="","",'DATOS RECRIA CAPRINO'!D22) -> PRICE (E/Tm)
A237: DIAS | B237: =B230/(B236/1000) -> 58.33333333 | D237: =IF('DATOS RECRIA CAPRINO'!B23="","",'DATOS RECRIA CAPRINO'!B23) -> GROW UP PERIOD | E237: =IF('DATOS RECRIA CAPRINO'!C23="","",'DATOS RECRIA CAPRINO'!C23) -> STRAW | F237: =IF('DATOS RECRIA CAPRINO'!D23="","",'DATOS RECRIA CAPRINO'!D23) -> 45
A238: FECHA ENTRADA | B238: =E217 -> 2015-11-11 | D238: =IF('DATOS RECRIA CAPRINO'!B24="","",'DATOS RECRIA CAPRINO'!B24) -> REPLACEMENT PERIOD 1 | E238: =IF('DATOS RECRIA CAPRINO'!C24="","",'DATOS RECRIA CAPRINO'!C24) -> FORAGE2 (0.65 UFL) | F238: =IF('DATOS RECRIA CAPRINO'!D24="","",'DATOS RECRIA CAPRINO'!D24) -> 125
A239: FECHA SALIDA | B239: =B238+B237 -> 2016-01-08T08:00:00 | D239: =IF('DATOS RECRIA CAPRINO'!B25="","",'DATOS RECRIA CAPRINO'!B25) ->  | E239: =IF('DATOS RECRIA CAPRINO'!C25="","",'DATOS RECRIA CAPRINO'!C25) -> STRAW | F239: =IF('DATOS RECRIA CAPRINO'!D25="","",'DATOS RECRIA CAPRINO'!D25) -> 45
A240: COSTE LECHE | B240: =(F230/1000)*B235 -> 32.8125 | D240: =IF('DATOS RECRIA CAPRINO'!B26="","",'DATOS RECRIA CAPRINO'!B26) -> REPLACEMENT PERIOD 2 | E240: =IF('DATOS RECRIA CAPRINO'!C26="","",'DATOS RECRIA CAPRINO'!C26) -> FORAGE2 (0.65 UFL) | F240: =IF('DATOS RECRIA CAPRINO'!D26="","",'DATOS RECRIA CAPRINO'!D26) -> 125
A241: COSTE PRESTARTER | B241: =IF(F231="","",(F231/1000)*B233) -> 0.624 | D241: =IF('DATOS RECRIA CAPRINO'!B27="","",'DATOS RECRIA CAPRINO'!B27) ->  | E241: =IF('DATOS RECRIA CAPRINO'!C27="","",'DATOS RECRIA CAPRINO'!C27) -> STRAW | F241: =IF('DATOS RECRIA CAPRINO'!D27="","",'DATOS RECRIA CAPRINO'!D27) -> 45
A242: COSTE TOTAL | B242: =SUM(B240:B241) -> 33.4365 | D242: =IF('DATOS RECRIA CAPRINO'!B28="","",'DATOS RECRIA CAPRINO'!B28) ->  | E242: =IF('DATOS RECRIA CAPRINO'!C28="","",'DATOS RECRIA CAPRINO'!C28) ->  | F242: =IF('DATOS RECRIA CAPRINO'!D28="","",'DATOS RECRIA CAPRINO'!D28) -> 
A244: FASE CRIA | E244: GMD | F244: KG PIENSO | G244: DIAS FASE | H244: DIF | I244: CT PIENSO | J244: EUROS PIENSO | K244: EUROS TOTAL | L244: AHORRO
A245: KILOS A REPONER | B245: =D222-D221 -> 8 | C245: =((D222-D221)/2)+D221 -> 18 | D245: ='DATOS RECRIA CAPRINO'!B40 -> 0 | E245: =IF('DATOS RECRIA CAPRINO'!C40="","",'DATOS RECRIA CAPRINO'!C40) ->  | F245: =IF('DATOS RECRIA CAPRINO'!D40="","",'DATOS RECRIA CAPRINO'!D40) ->  | G245: =IF(E245="","",B245/(E245/1000)) ->  | H245: =IF(G245="","",G245-B257) ->  | I245: =IF(F245="","",F245*G245) ->  | J245: =IF(I245="","",I245*(F232/1000)) ->  | K245: =IF(J245="","",J245+B261) ->  | L245: =IF(K245="","",K245-B262) -> 
A246: UF PIENSO | B246: =VLOOKUP(E232,PIENSOS!C11:D20,2,FALSE) -> 0.995 | C246: =B246 -> 0.995 | D246: ='DATOS RECRIA CAPRINO'!B41 -> 0 | E246: =IF('DATOS RECRIA CAPRINO'!C41="","",'DATOS RECRIA CAPRINO'!C41) ->  | F246: =IF('DATOS RECRIA CAPRINO'!D41="","",'DATOS RECRIA CAPRINO'!D41) ->  | G246: =IF(E246="","",B267/(E246/1000)) ->  | H246: =IF(G246="","",G246-B285) ->  | I246: =IF(F246="","",F246*G246) ->  | J246: =IF(I246="","",I246*(F233/1000)) ->  | K246: =IF(J246="","",J246+B297+B298) ->  | L246: =IF(K246="","",K246-B300) -> 
A247: UF PAJA | B247: ='HOJA DE DATOS'!B41*1000 -> 370 | C247: =B247/1000 -> 0.37
A248: CMD PIENSO | B248: =B250-B249 -> 825 | C248: =C246*(B248/1000) -> 0.820875 | G248: SUMA DIAS | H248: =SUM(H245:H247) -> 0 | K248: EUROS TOTAL | L248: =SUM(L245:L247) -> 0
A249: CMD PAJA | B249: 75 | C249: =C247*(B249/1000) -> 0.02775
... 87 more rows

Sheet DATOS RECRIA OVINO
A7: ENTER SHEEP DATA | G7: ECHONOMICAL BALANCE | N7: SCHEDULE/PLANNING
N8: SCHEDULE PER PERIOD | T8: SUMMARY
H9: PERIOD | I9: FEED | J9: Kg/DAY | K9: KG/ANIMAL | L9: KG/GROUP | P9: KG.BW | S9: DATE
A10: FARM DATA | B10: FARM | C10: EXAMPLE | G10: FEEDIN PLANNING | H10: MR PERIOD | I10: =IF(C16="","",C16) -> NANTAMILK SUPREME | K10: =IF(I10="","",'HOJA DE DATOS'!B100) -> 8.8 | L10: =IF(K10="","",$C$13*K10) -> 2032.8 | N10: MR PERIOD | P10: =IF(D30="","",D30) -> 4 | S10: =IF(C12="","",C12) -> 2016-10-12 | U10: =IF(S10="","",S10) -> 2016-10-12
B11: BREED | C11: LACAUNE | I11: =IF(C17="","",C17) -> LACTACOR COPOS | K11: =IF(I11="","",'HOJA DE DATOS'!B98) -> 1.5 | L11: 346.5 | Q11: =IF(C16="","",C16) -> NANTAMILK SUPREME
B12: INITIAL DATE | C12: 2016-10-12 | H12: GROW UP PERIOD | I12: =IF(C18="","",C18) -> NANTACOR | J12: =IF(I12="","",'HOJA DE DATOS'!B113/1000) -> 1.095 | K12: =IF(I12="","",'HOJA DE DATOS'!B122) -> 63.2233842 | L12: 14604.60175 | Q12: =IF(C17="","",C17) -> LACTACOR COPOS
B13: ANIMALS IN GROUP | C13: 231 | I13: =IF(C23="","",C23) -> STRAW | J13: =IF(I13="","",'HOJA DE DATOS'!B114/1000) -> 0.1 | K13: =IF(I13="","",'HOJA DE DATOS'!B123) -> 5.773825041 | L13: 1333.753584 | Q13: ADG (gr/day) | R13: =IF(D31="","",'HOJA DE DATOS'!B101) -> 280.5
H14: REPLACEMENT PERIOD 1 | I14: =IF(C19="","",C19) -> OVIRECRIA | J14: =IF(I14="","",'HOJA DE DATOS'!B141) -> 0.6 | K14: =IF(I14="","",'HOJA DE DATOS'!B161) -> 78.75 | L14: 18191.25 | Q14: DAYS | R14: =IF(D31="","",'HOJA DE DATOS'!B102) -> 28.52049911 | U14: REARING PERIOD
C15: PRODUCT | D15: PRICE (E/Tm) | I15: =IF(C24="","",C24) -> FORAGE2 (0.65 UFL) | J15: =IF(I15="","",IF('HOJA DE DATOS'!B146=0,'HOJA DE DATOS'!B142,'HOJA DE DATOS'!B146)) -> 0.7992307692 | K15: =IF(I15="","",IF('HOJA DE DATOS'!B159=0,'HOJA DE DATOS'!B160,'HOJA DE DATOS'!B159)) -> 104.8990385 | L15: 24231.67788 | Q15: MONTH | R15: =IF(R14="","",R14/30) -> 0.9506833036 | U15: TOT DAYS | V15: =IF(U41="","",U41-U10) -> 322.5087495
A16: PRODUCTS | B16: MILK REPLACER | C16: NANTAMILK SUPREME | D16: 2200 | I16: =IF(C25="","",C25) -> STRAW | J16: =IF(I16="","",'HOJA DE DATOS'!B142) -> 0.25 | K16: =IF(I16="","",'HOJA DE DATOS'!B160) -> 32.8125 | L16: 7579.6875 | P16: =IF(D32="","",D32) -> 12 | S16: =IF(D32="","",'HOJA DE DATOS'!B104) -> 2016-11-09T12:29:31.123 | U16: TOT MONTH | V16: =IF(V15="","",V15/30) -> 10.75029165
B17: PRESTARTER | C17: LACTACOR COPOS | D17: 400 | H17: REPLACEMENT PERIOD 2 | I17: =IF(C20="","",C20) -> OVIRECRIA CONT. | J17: =IF(I17="","",'HOJA DE DATOS'!B200) -> 0.6 | K17: =IF(I17="","",'HOJA DE DATOS'!B203) -> 81.75 | L17: 18884.25 | N17: GROW UP PERIOD
B18: GROW UP CF | C18: NANTACOR | D18: 275 | I18: =IF(C26="","",C26) -> FORAGE2 (0.65 UFL) | J18: =IF(I18="","",IF('HOJA DE DATOS'!B198=0,'HOJA DE DATOS'!B199,'HOJA DE DATOS'!B198)) -> 0.8165384615 | K18: =IF(I18="","",IF('HOJA DE DATOS'!B201=0,'HOJA DE DATOS'!B202,'HOJA DE DATOS'!B201)) -> 111.2533654 | L18: 25699.5274
B19: REPLACEMENT 1 CF | C19: OVIRECRIA | D19: 230 | I19: =IF(C27="","",C27) -> STRAW | J19: =IF(I19="","",'HOJA DE DATOS'!B199) -> 0.425 | K19: =IF(I19="","",'HOJA DE DATOS'!B202) -> 57.90625 | L19: 13376.34375 | Q19: =IF(C18="","",C18) -> NANTACOR | U19: FIRST BIRTH AGE
B20: REPLACEMENT 2 CF | C20: OVIRECRIA CONT. | D20: 200 | Q20: ADG (gr/day) | R20: =IF(D33="","",'HOJA DE DATOS'!B120) -> 363.7103628 | U20: DAYS | V20: =IF(S42="","",S42-S10) -> 367.5087495
Q21: DAYS | R21: =IF(D33="","",'HOJA DE DATOS'!B121) -> 57.73825041 | U21: MONTH | V21: =IF(V20="","",V20/30) -> 12.25029165
C22: PRODUCT | D22: PRICE (E/Tm) | H22: FASE | I22: PER ANIMAL | J22: PER GROUP | Q22: MONTH | R22: =IF(R21="","",R21/30) -> 1.924608347
A23: OTHER FEED | B23: GROW UP PERIOD | C23: STRAW | D23: 45 | G23: EACH PERIOD COST | H23: MR PERIOD | I23: =IF(D31="","",'HOJA DE DATOS'!B107) -> 19.96 | J23: =IF(I23="","",I23*C13) -> 4610.76
B24: REPLACEMENT PERIOD 1 | C24: FORAGE2 (0.65 UFL) | D24: 135 | P24: =IF(D33="","",D33) -> 33 | S24: =IF(D33="","",'HOJA DE DATOS'!B128) -> 2017-01-06T06:12:35.958
C25: STRAW | D25: 45 | H25: GROW UP PERIOD | I25: =IF(D33="","",'HOJA DE DATOS'!B126) -> 17.64625278 | J25: =IF(I25="","",I25*C13) -> 4076.284392 | N25: REPLAC. 1 | U25: REARING TOTAL COSTS
B26: REPLACEMENT PERIOD 2 | C26: FORAGE2 (0.65 UFL) | D26: 135 | U26: AMOUNT | V26: =IF(C13="","",C13) -> 231
C27: STRAW | D27: 45 | H27: REPLACEMENT PERIOD 1 | I27: =IF(D35="","",'HOJA DE DATOS'!B165) -> 33.75043269 | J27: =IF(I27="","",I27*C13) -> 7796.349952 | Q27: =IF(C19="","",C19) -> OVIRECRIA | U27: SHEEP | V27: =IF(I34="","",I34) -> 105.331671
Q28: ADG (gr/day) | R28: =IF(D35="","",'HOJA DE DATOS'!B149) -> 120 | U28: GROUP | V28: =IF(J34="","",J34) -> 24331.61601
D29: KG.B.W. | E29: RECOM | J29: =IF(I29="","",I29*C19) ->  | Q29: DAYS | R29: =IF(D35="","",'HOJA DE DATOS'!B150) -> 100
A30: BODY WEIGHT | B30: MR PERIOD | C30: INITIAL BODW WEIGHT | D30: 4 | E30: =IF(D30="","",'HOJA DE DATOS'!G84) -> 4.5 | H30: REPLACEMENT PERIOD 2 | I30: =IF(D37="","",'HOJA DE DATOS'!B208) -> 33.97498558 | J30: =IF(I30="","",I30*C13) -> 7848.221668 | Q30: MONTH | R30: =IF(R29="","",R29/30) -> 3.333333333 | U30: PRODUCTS
C31: FINAL BODY WEIGHT | D31: 12 | E31: =IF(D31="","",'HOJA DE DATOS'!G85) -> 13 | J31: =IF(I31="","",I31*C21) ->  | U31: =IF(C16="","",C16) -> NANTAMILK SUPREME
B32: GROW UP PERIOD | C32: INITIAL BODW WEIGHT | D32: 12 | E32: =IF(D32="","",'HOJA DE DATOS'!G86) -> 13 | S32: =IF(E35="","",'HOJA DE DATOS'!B156) -> 2017-05-17T12:12:35.958 | U32: =IF(C17="","",C17) -> LACTACOR COPOS
C33: FINAL BODY WEIGHT | D33: 33 | E33: =IF(D33="","",'HOJA DE DATOS'!G87) -> 32 | H33: REPL. PERIOD | I33: =IF(I27="","",SUM(I27:I32)) -> 67.72541827 | J33: =IF(J27="","",SUM(J27:K32)) -> 15644.57162 | P33: =IF(D35="","",D35) -> 45 | S33: =IF(D35="","",'HOJA DE DATOS'!B152) -> 2017-04-16T06:12:35.958 | U33: =IF(C18="","",C18) -> NANTACOR
B34: REPLACEMENT PERIOD 1 | C34: INITIAL BODW WEIGHT | D34: 33 | E34: =IF(D34="","",'HOJA DE DATOS'!G88) -> 32 | H34: GLOBAL REARING | I34: =IF(I27="","",SUM(I23:I32)) -> 105.331671 | J34: =IF(J27="","",SUM(J23:K32)) -> 24331.61601 | N34: REPLAC.2 | U34: =IF(C19="","",C19) -> OVIRECRIA
C35: FINAL BODY WEIGHT | D35: 45 | E35: =IF(D35="","",'HOJA DE DATOS'!G89) -> 48.75 | Q35: =IF(C20="","",C20) -> OVIRECRIA CONT. | U35: =IF(C20="","",C20) -> OVIRECRIA CONT.
B36: REPALCEMENT PERIOD 2 | C36: INITIAL BODW WEIGHT | D36: 45 | E36: =IF(D36="","",'HOJA DE DATOS'!G90) -> 48.75 | Q36: ADG (gr/day) | R36: =IF(D37="","",'HOJA DE DATOS'!B182) -> 100
C37: FINAL BODY WEIGHT | D37: 60 | E37: =IF(D37="","",'HOJA DE DATOS'!B183) -> 58.625 | Q37: DAYS | R37: =IF(D37="","",'HOJA DE DATOS'!B178) -> 136.25
Q38: MONTH | R38: =IF(R37="","",R37/30) -> 4.541666667
P41: =IF(D37="","",D37) -> 60 | S41: =IF(D37="","",'HOJA DE DATOS'!B177) -> 2017-08-30T12:12:35.958 | U41: =IF(S41="","",S41) -> 2017-08-30T12:12:35.958
Q42: BIRTH DATA | S42: =IF(D37="","",'HOJA DE DATOS'!B173) -> 2017-10-14T12:12:35.958

Sheet DATOS RECRIA CAPRINO
A7: ENTER GOATS DATA | G7: ECHONOMICAL BALANCE | N7: SCHEDULE/PLANNING
N8: SCHEDULE PER PERIOD | T8: SUMMARY
H9: FASE | I9: ALIMENTO | J9: Kg/DIA | K9: KG/ANIMAL | L9: KG/LOTE | P9: KG.BW | S9: DATE
A10: FARM DATA | B10: FARM | C10: AGRI DAMIS | G10: FEEDIN PLANNING | H10: MR PERIOD | I10: =IF(C16="","",C16) -> NANTAMILK SUPREME | K10: =IF(I10="","",'HOJA DE DATOS'!B235) -> 13.125 | L10: =IF(K10="","",$C$13*K10) -> 2625 | N10: MR PERIOD | P10: =IF(D30="","",D30) -> 3.5 | S10: =IF(C12="","",C12) -> 2015-11-11 | U10: =IF(S10="","",S10) -> 2015-11-11
B11: BRRED | C11: SAANEN | I11: =IF(C17="","",C17) -> LACTACOR COPOS | K11: =IF(I11="","",'HOJA DE DATOS'!B233) -> 1.56 | L11: 312 | Q11: =IF(C16="","",C16) -> NANTAMILK SUPREME
B12: INITIAL DATE | C12: 2015-11-11 | H12: GROW UP PERIOD | I12: =IF(C18="","",C18) -> NANTACOR | J12: =IF(I12="","",'HOJA DE DATOS'!B248/1000) -> 0.825 | K12: =IF(I12="","",'HOJA DE DATOS'!B258) -> 31.73076923 | L12: 6346.153846 | Q12: =IF(C17="","",C17) -> LACTACOR COPOS
B13: ANIMALS IN GROUP | C13: 200 | I13: =IF(C23="","",C23) -> STRAW | J13: =IF(I13="","",'HOJA DE DATOS'!B249/1000) -> 0.075 | K13: =IF(I13="","",'HOJA DE DATOS'!B259) -> 2.884615385 | L13: 576.9230769 | Q13: ADG (gr/day) | R13: =IF(D31="","",'HOJA DE DATOS'!B236) -> 180
H14: REPLACEMENT PERIOD 1 | I14: =IF(C19="","",C19) -> CAPRIRECRIA | J14: =IF(I14="","",'HOJA DE DATOS'!B276) -> 0.5 | K14: =IF(I14="","",'HOJA DE DATOS'!B296) -> 77.88461538 | L14: 15576.92308 | Q14: DAYS | R14: =IF(D31="","",'HOJA DE DATOS'!B237) -> 58.33333333 | U14: REARING PERIOD
C15: PRODUCT | D15: PRICE (E/Tm) | I15: =IF(C24="","",C24) -> FORAGE2 (0.65 UFL) | J15: =IF(I15="","",IF('HOJA DE DATOS'!B281=0,'HOJA DE DATOS'!B277,'HOJA DE DATOS'!B281)) -> 0.712 | K15: =IF(I15="","",IF('HOJA DE DATOS'!B294=0,'HOJA DE DATOS'!B295,'HOJA DE DATOS'!B294)) -> 110.9076923 | L15: 22181.53846 | Q15: MONTH | R15: =IF(R14="","",R14/30) -> 1.944444444 | U15: TOT DAYS | V15: =IF(U41="","",U41-U10) -> 357.5641026
A16: PRODUCTS | B16: MILK REPLACER | C16: NANTAMILK SUPREME | D16: 2500 | I16: =IF(C25="","",C25) -> STRAW | J16: =IF(I16="","",'HOJA DE DATOS'!B277) -> 0.06 | K16: =IF(I16="","",'HOJA DE DATOS'!B295) -> 9.346153846 | L16: 1869.230769 | P16: =IF(D32="","",D32) -> 14 | S16: =IF(D32="","",'HOJA DE DATOS'!B239) -> 2016-01-08T08:00:00 | U16: TOT MONTH | V16: =IF(V15="","",V15/30) -> 11.91880342
B17: PRESTARTER | C17: LACTACOR COPOS | D17: 400 | H17: REPLACEMENT PERIOD 2 | I17: =IF(C20="","",C20) -> CAPRIRECRIA CONT. | J17: =IF(I17="","",'HOJA DE DATOS'!B335) -> 0.55 | K17: =IF(I17="","",'HOJA DE DATOS'!B338) -> 58.80769231 | L17: 11761.53846 | N17: GROW UP PERIOD
B18: GROW UP CF | C18: NANTACOR | D18: 290 | I18: =IF(C26="","",C26) -> FORAGE2 (0.65 UFL) | J18: =IF(I18="","",IF('HOJA DE DATOS'!B333=0,'HOJA DE DATOS'!B334,'HOJA DE DATOS'!B333)) -> 0.5780769231 | K18: =IF(I18="","",IF('HOJA DE DATOS'!B336=0,'HOJA DE DATOS'!B337,'HOJA DE DATOS'!B336)) -> 61.80976331 | L18: 12361.95266
B19: REPLACEMENT 1 CF | C19: CAPRIRECRIA | D19: 250 | I19: =IF(C27="","",C27) -> STRAW | J19: =IF(I19="","",'HOJA DE DATOS'!B334) -> 0.225 | K19: =IF(I19="","",'HOJA DE DATOS'!B337) -> 24.05769231 | L19: 4811.538462 | Q19: =IF(C18="","",C18) -> NANTACOR | U19: FIRST BIRTH AGE
B20: REPLACEMENT 2 CF | C20: CAPRIRECRIA CONT. | D20: 225 | Q20: ADG (gr/day) | R20: =IF(D33="","",'HOJA DE DATOS'!B256) -> 208 | U20: DAYS | V20: =IF(S42="","",S42-S10) -> 402.5641026
Q21: DAYS | R21: =IF(D33="","",'HOJA DE DATOS'!B257) -> 38.46153846 | U21: MONTH | V21: =IF(V20="","",V20/30) -> 13.41880342
C22: PRODUCT | D22: PRICE (E/Tm) | H22: FASE | I22: POR ANIMAL | J22: POR LOTE | Q22: MONTH | R22: =IF(R21="","",R21/30) -> 1.282051282
A23: OTHER FEED | B23: GROW UP PERIOD | C23: STRAW | D23: 45 | G23: EACH PERIOD COST | H23: MR PERIOD | I23: =IF(D31="","",'HOJA DE DATOS'!B242) -> 33.4365 | J23: =IF(I23="","",I23*C13) -> 6687.3
B24: REPLACEMENT PERIOD 1 | C24: FORAGE2 (0.65 UFL) | D24: 125 | P24: =IF(D33="","",D33) -> 22 | S24: =IF(D33="","",'HOJA DE DATOS'!B264) -> 2016-02-15T19:04:36.923
C25: STRAW | D25: 45 | H25: GROW UP PERIOD | I25: =IF(D33="","",'HOJA DE DATOS'!B262) -> 9.331730769 | J25: =IF(I25="","",I25*C13) -> 1866.346154 | N25: REPLAC. 1 | U25: REARING COSTS
B26: REPLACEMENT PERIOD 2 | C26: FORAGE2 (0.65 UFL) | D26: 125 | U26: AMOUNT | V26: =IF(C13="","",C13) -> 200
C27: STRAW | D27: 45 | H27: REPLACEMENT PERIOD 1 | I27: =IF(D35="","",'HOJA DE DATOS'!B300) -> 33.75519231 | J27: =IF(I27="","",I27*C13) -> 6751.038462 | Q27: =IF(C19="","",C19) -> CAPRIRECRIA | U27: ANIMAL | V27: =IF(I34="","",I34) -> 98.56397041
Q28: ADG (gr/day) | R28: =IF(D35="","",'HOJA DE DATOS'!B284) -> 130 | U28: GROUP | V28: =IF(J34="","",J34) -> 19712.79408
D29: KG.B.W. | E29: RECOM | J29: =IF(I29="","",I29*C19) ->  | Q29: DAYS | R29: =IF(D35="","",'HOJA DE DATOS'!B285) -> 153.8461538
A30: BODY WEIGHT | B30: MR PERIOD | C30: INITIAL BODW WEIGHT | D30: 3.5 | E30: =IF(D30="","",'HOJA DE DATOS'!G219) -> 3.64 | H30: REPLACEMENT PERIOD 2 | I30: =IF(D37="","",'HOJA DE DATOS'!B343) -> 22.04054734 | J30: =IF(I30="","",I30*C13) -> 4408.109467 | Q30: MONTH | R30: =IF(R29="","",R29/30) -> 5.128205128 | U30: PRODUCS
C31: FINAL BODY WEIGHT | D31: 14 | E31: =IF(D31="","",'HOJA DE DATOS'!G220) -> 14.3 | J31: =IF(I31="","",I31*C21) ->  | U31: =IF(C16="","",C16) -> NANTAMILK SUPREME
B32: GROW UP PERIOD | C32: INITIAL BODW WEIGHT | D32: 14 | E32: =IF(D32="","",'HOJA DE DATOS'!G221) -> 14.3 | Q32: FECUNDATION DATA | S32: =IF(E35="","",'HOJA DE DATOS'!B291) -> 2016-07-20T13:32:18.462 | U32: =IF(C17="","",C17) -> LACTACOR COPOS
C33: FINAL BODY WEIGHT | D33: 22 | E33: =IF(D33="","",'HOJA DE DATOS'!G222) -> 23 | H33: REPL. PERIOD | I33: =IF(I27="","",SUM(I27:I32)) -> 55.79573964 | J33: =IF(J27="","",SUM(J27:K32)) -> 11159.14793 | P33: =IF(D35="","",D35) -> 42 | S33: =IF(D35="","",'HOJA DE DATOS'!B287) -> 2016-07-18T15:23:04.615 | U33: =IF(C18="","",C18) -> NANTACOR
B34: REPLACEMENT PERIOD 1 | C34: INITIAL BODW WEIGHT | D34: 22 | E34: =IF(D34="","",'HOJA DE DATOS'!G223) -> 23 | H34: GLOBAL REARING | I34: =IF(I27="","",SUM(I23:I32)) -> 98.56397041 | J34: =IF(J27="","",SUM(J23:K32)) -> 19712.79408 | N34: REPLAC.2 | U34: =IF(C19="","",C19) -> CAPRIRECRIA
C35: FINAL BODY WEIGHT | D35: 42 | E35: =IF(D35="","",'HOJA DE DATOS'!G224) -> 42.25 | Q35: =IF(C20="","",C20) -> CAPRIRECRIA CONT. | U35: =IF(C20="","",C20) -> CAPRIRECRIA CONT.
B36: REPALCEMENT PERIOD 2 | C36: INITIAL BODW WEIGHT | D36: 42 | E36: =IF(D36="","",'HOJA DE DATOS'!G225) -> 42.25 | Q36: ADG (gr/day) | R36: =IF(D37="","",'HOJA DE DATOS'!B317) -> 104
C37: FINAL BODY WEIGHT | D37: 54 | E37: =IF(D37="","",'HOJA DE DATOS'!G226) -> 53.12 | Q37: DAYS | R37: =IF(D37="","",'HOJA DE DATOS'!B313) -> 106.9230769
Q38: MONTH | R38: =IF(R37="","",R37/30) -> 3.564102564
P41: =IF(D37="","",D37) -> 54 | S41: =IF(D37="","",'HOJA DE DATOS'!B312) -> 2016-11-02T13:32:18.462 | U41: =IF(S41="","",S41) -> 2016-11-02T13:32:18.462
Q42: FECHA PARTO | S42: =IF(D37="","",'HOJA DE DATOS'!B308) -> 2016-12-17T13:32:18.462

Sheet FICHA RECRIA OVINO
B1: TECHNICAL-ECHONOMICAL RESULTS RECIPE
B4: FARM | C4: =IF('DATOS RECRIA OVINO'!C10="","",'DATOS RECRIA OVINO'!C10) -> EXAMPLE | D4: BIRTH DATE | E4: =IF('DATOS RECRIA OVINO'!S42="","",'DATOS RECRIA OVINO'!S42) -> 2017-10-14T12:12:35.958
B5: BREED | C5: =IF('DATOS RECRIA OVINO'!C11="","",'DATOS RECRIA OVINO'!C11) -> LACAUNE | D5: FIRST BIRTH AGE (month) | E5: =IF('DATOS RECRIA OVINO'!V21="","",'DATOS RECRIA OVINO'!V21) -> 12.25029165
B6: DATE | C6: =IF('DATOS RECRIA OVINO'!C12="","",'DATOS RECRIA OVINO'!C12) -> 2016-10-12 | D6: GLOBAL REARING COST | E6: =IF('DATOS RECRIA OVINO'!I34="","",'DATOS RECRIA OVINO'!I34) -> 105.331671
B7: Nº (GROUP) | C7: =IF('DATOS RECRIA OVINO'!C13="","",'DATOS RECRIA OVINO'!C13) -> 231
F9: FECUNDATION | H9: END REARING PERIOD
B10: BODY WEIGHT | C10: =IF('DATOS RECRIA OVINO'!$P$10="","",'DATOS RECRIA OVINO'!P10) -> 4 | D10: =IF('DATOS RECRIA OVINO'!P16="","",'DATOS RECRIA OVINO'!P16) -> 12 | E10: =IF('DATOS RECRIA OVINO'!P24="","",'DATOS RECRIA OVINO'!P24) -> 33 | G10: =IF('DATOS RECRIA OVINO'!P33="","",'DATOS RECRIA OVINO'!P33) -> 45 | H10: =IF('DATOS RECRIA OVINO'!P41="","",'DATOS RECRIA OVINO'!P41) -> 60
B11: DATE | C11: =IF('DATOS RECRIA OVINO'!S10="","",'DATOS RECRIA OVINO'!S10) -> 2016-10-12 | D11: =IF('DATOS RECRIA OVINO'!S16="","",'DATOS RECRIA OVINO'!S16) -> 2016-11-09T12:29:31.123 | E11: =IF('DATOS RECRIA OVINO'!S24="","",'DATOS RECRIA OVINO'!S24) -> 2017-01-06T06:12:35.958 | F11: =IF('DATOS RECRIA OVINO'!S32="","",'DATOS RECRIA OVINO'!S32) -> 2017-05-17T12:12:35.958 | G11: =IF('DATOS RECRIA OVINO'!S33="","",'DATOS RECRIA OVINO'!S33) -> 2017-04-16T06:12:35.958 | H11: =IF('DATOS RECRIA OVINO'!S41="","",'DATOS RECRIA OVINO'!S41) -> 2017-08-30T12:12:35.958
B12: PRODUCT | C12: =IF('DATOS RECRIA OVINO'!U31="","",'DATOS RECRIA OVINO'!U31) -> NANTAMILK SUPREME | D12: =IF('DATOS RECRIA OVINO'!U33="","",'DATOS RECRIA OVINO'!U33) -> NANTACOR | E12: =IF('DATOS RECRIA OVINO'!U34="","",'DATOS RECRIA OVINO'!U34) -> OVIRECRIA | G12: =IF('DATOS RECRIA OVINO'!U35="","",'DATOS RECRIA OVINO'!U35) -> OVIRECRIA CONT. | H12: =IF('DATOS RECRIA OVINO'!V35="","",'DATOS RECRIA OVINO'!V35) -> 
C13: =IF('DATOS RECRIA OVINO'!U32="","",'DATOS RECRIA OVINO'!U32) -> LACTACOR COPOS
B14: DAYS | C14: =IF('DATOS RECRIA OVINO'!R14="","",'DATOS RECRIA OVINO'!R14) -> 28.52049911 | D14: =IF('DATOS RECRIA OVINO'!R21="","",'DATOS RECRIA OVINO'!R21) -> 57.73825041 | E14: =IF('DATOS RECRIA OVINO'!R29="","",'DATOS RECRIA OVINO'!R29) -> 100 | G14: =IF('DATOS RECRIA OVINO'!R37="","",'DATOS RECRIA OVINO'!R37) -> 136.25 | H14: =IF('DATOS RECRIA OVINO'!S37="","",'DATOS RECRIA OVINO'!S37) -> 
B15: MONTH | C15: =IF('DATOS RECRIA OVINO'!R15="","",'DATOS RECRIA OVINO'!R15) -> 0.9506833036 | D15: =IF('DATOS RECRIA OVINO'!R22="","",'DATOS RECRIA OVINO'!R22) -> 1.924608347 | E15: =IF('DATOS RECRIA OVINO'!R30="","",'DATOS RECRIA OVINO'!R30) -> 3.333333333 | G15: =IF('DATOS RECRIA OVINO'!R38="","",'DATOS RECRIA OVINO'!R38) -> 4.541666667 | H15: =IF('DATOS RECRIA OVINO'!S38="","",'DATOS RECRIA OVINO'!S38) -> 
B16: ADG (gr/day) | C16: =IF('DATOS RECRIA OVINO'!R13="","",'DATOS RECRIA OVINO'!R13) -> 280.5 | D16: =IF('DATOS RECRIA OVINO'!R20="","",'DATOS RECRIA OVINO'!R20) -> 363.7103628 | E16: =IF('DATOS RECRIA OVINO'!R28="","",'DATOS RECRIA OVINO'!R28) -> 120 | G16: =IF('DATOS RECRIA OVINO'!R36="","",'DATOS RECRIA OVINO'!R36) -> 100 | H16: =IF('DATOS RECRIA OVINO'!S36="","",'DATOS RECRIA OVINO'!S36) -> 
C18: MR PERIOD | D18: GROW UP PERIOD | E18: REPLACEMENT PERIOD 1 | G18: REPLACEMENT PERIOD 2

Sheet FICHA RECRIA CAPRINO
B1: TECHNICAL-ECHONOMICAL RESULTS RECIPE
B4: FARM | C4: =IF('DATOS RECRIA CAPRINO'!C10="","",'DATOS RECRIA CAPRINO'!C10) -> AGRI DAMIS | D4: BIRTH DATE | E4: =IF('DATOS RECRIA CAPRINO'!S42="","",'DATOS RECRIA CAPRINO'!S42) -> 2016-12-17T13:32:18.462
B5: BREED | C5: =IF('DATOS RECRIA CAPRINO'!C11="","",'DATOS RECRIA CAPRINO'!C11) -> SAANEN | D5: FIRST BIRTH AGE (month) | E5: =IF('DATOS RECRIA CAPRINO'!V21="","",'DATOS RECRIA CAPRINO'!V21) -> 13.41880342
B6: DATE | C6: =IF('DATOS RECRIA CAPRINO'!C12="","",'DATOS RECRIA CAPRINO'!C12) -> 2015-11-11 | D6: GLOBAL REARING COST | E6: =IF('DATOS RECRIA CAPRINO'!I34="","",'DATOS RECRIA CAPRINO'!I34) -> 98.56397041
B7: Nº (GROUP) | C7: =IF('DATOS RECRIA CAPRINO'!C13="","",'DATOS RECRIA CAPRINO'!C13) -> 200
F9: FECUNDATION | H9: END REARING PERIOD
B10: BODY WEIGHT | C10: =IF('DATOS RECRIA CAPRINO'!$P$10="","",'DATOS RECRIA CAPRINO'!P10) -> 3.5 | D10: =IF('DATOS RECRIA CAPRINO'!P16="","",'DATOS RECRIA CAPRINO'!P16) -> 14 | E10: =IF('DATOS RECRIA CAPRINO'!P24="","",'DATOS RECRIA CAPRINO'!P24) -> 22 | G10: =IF('DATOS RECRIA CAPRINO'!P33="","",'DATOS RECRIA CAPRINO'!P33) -> 42 | H10: =IF('DATOS RECRIA CAPRINO'!P41="","",'DATOS RECRIA CAPRINO'!P41) -> 54
B11: DATE | C11: =IF('DATOS RECRIA CAPRINO'!S10="","",'DATOS RECRIA CAPRINO'!S10) -> 2015-11-11 | D11: =IF('DATOS RECRIA CAPRINO'!S16="","",'DATOS RECRIA CAPRINO'!S16) -> 2016-01-08T08:00:00 | E11: =IF('DATOS RECRIA CAPRINO'!S24="","",'DATOS RECRIA CAPRINO'!S24) -> 2016-02-15T19:04:36.923 | F11: =IF('DATOS RECRIA CAPRINO'!S32="","",'DATOS RECRIA CAPRINO'!S32) -> 2016-07-20T13:32:18.462 | G11: =IF('DATOS RECRIA CAPRINO'!S33="","",'DATOS RECRIA CAPRINO'!S33) -> 2016-07-18T15:23:04.615 | H11: =IF('DATOS RECRIA CAPRINO'!S41="","",'DATOS RECRIA CAPRINO'!S41) -> 2016-11-02T13:32:18.462
B12: PRODUCT | C12: =IF('DATOS RECRIA CAPRINO'!U31="","",'DATOS RECRIA CAPRINO'!U31) -> NANTAMILK SUPREME | D12: =IF('DATOS RECRIA CAPRINO'!U33="","",'DATOS RECRIA CAPRINO'!U33) -> NANTACOR | E12: =IF('DATOS RECRIA CAPRINO'!U34="","",'DATOS RECRIA CAPRINO'!U34) -> CAPRIRECRIA | G12: =IF('DATOS RECRIA CAPRINO'!U35="","",'DATOS RECRIA CAPRINO'!U35) -> CAPRIRECRIA CONT. | H12: =IF('DATOS RECRIA OVINO'!V35="","",'DATOS RECRIA OVINO'!V35) -> 
C13: =IF('DATOS RECRIA CAPRINO'!U32="","",'DATOS RECRIA CAPRINO'!U32) -> LACTACOR COPOS
B14: DAYS | C14: =IF('DATOS RECRIA CAPRINO'!R14="","",'DATOS RECRIA CAPRINO'!R14) -> 58.33333333 | D14: =IF('DATOS RECRIA CAPRINO'!R21="","",'DATOS RECRIA CAPRINO'!R21) -> 38.46153846 | E14: =IF('DATOS RECRIA CAPRINO'!R29="","",'DATOS RECRIA CAPRINO'!R29) -> 153.8461538 | G14: =IF('DATOS RECRIA CAPRINO'!R37="","",'DATOS RECRIA CAPRINO'!R37) -> 106.9230769 | H14: =IF('DATOS RECRIA OVINO'!S37="","",'DATOS RECRIA OVINO'!S37) -> 
B15: MONTH | C15: =IF('DATOS RECRIA CAPRINO'!R15="","",'DATOS RECRIA CAPRINO'!R15) -> 1.944444444 | D15: =IF('DATOS RECRIA CAPRINO'!R22="","",'DATOS RECRIA CAPRINO'!R22) -> 1.282051282 | E15: =IF('DATOS RECRIA CAPRINO'!R30="","",'DATOS RECRIA CAPRINO'!R30) -> 5.128205128 | G15: =IF('DATOS RECRIA CAPRINO'!R38="","",'DATOS RECRIA CAPRINO'!R38) -> 3.564102564 | H15: =IF('DATOS RECRIA OVINO'!S38="","",'DATOS RECRIA OVINO'!S38) -> 
B16: ADG (gr/day) | C16: =IF('DATOS RECRIA CAPRINO'!R13="","",'DATOS RECRIA CAPRINO'!R13) -> 180 | D16: =IF('DATOS RECRIA CAPRINO'!R20="","",'DATOS RECRIA CAPRINO'!R20) -> 208 | E16: =IF('DATOS RECRIA CAPRINO'!R28="","",'DATOS RECRIA CAPRINO'!R28) -> 130 | G16: =IF('DATOS RECRIA CAPRINO'!R36="","",'DATOS RECRIA CAPRINO'!R36) -> 104 | H16: =IF('DATOS RECRIA OVINO'!S36="","",'DATOS RECRIA OVINO'!S36) -> 
C18: MR PERIOD | D18: GROW UP PERIOD | E18: REPLACEMENT PERIOD 1 | G18: REPLACEMENT PERIOD 2

Sheet SIMULACION OVINO
A7: REARING SHEEP SIMULATION
A9: INITIAL DATA | B9: PERIOD | C9: GROW UP
B10: INITIAL DATE | C10: 2021-05-12
B11: INITIAL BODY WEIGHT | C11: 12 | D11: =IF(C9="","",'HOJA DE DATOS'!E30) -> 12 a 30
B12: TARGET BODY WEIGT | C12: 28
A14: RECOMENDATIONS | B14: PESOS PERIODO | C14: =IF(D11="","",D11) -> 12 a 30
B15: GMD RECOMENDADA | C15: =IF(C9="","",'HOJA DE DATOS'!E31) -> > 280 gr/dia
B16: CMD ESTIMADO (gr/dia) | C16: =IF(C9="RECRIA","",IF('HOJA DE DATOS'!E8="","",'HOJA DE DATOS'!E8)) -> 998
C18: UFL | D18: Kg/day
A19: RATION | B19: NANTACOR | C19: =IF(B19="","",VLOOKUP(B19,PIENSOS!C11:D29,2,FALSE)) -> 0.995 | D19: 0.85
B20: STRAW | C20: 0.38 | D20: 0.08
B23: UFL DIET | C23: =IF(C11="","",'HOJA DE DATOS'!D5) -> 0.87615 | E23: =IF('HOJA DE DATOS'!F9="","",'HOJA DE DATOS'!F9) -> -0.09385
B24: ADG (gr/day) | C24: =IF(C9="","",IF('HOJA DE DATOS'!D7="CRIA",'HOJA DE DATOS'!D8,'HOJA DE DATOS'!K8)) -> 156.4553571 | E24: =IF('HOJA DE DATOS'!G9="","",'HOJA DE DATOS'!G9) -> -151.5446429
C27: DATE | D27: BW (Kg)
C28: =IF(C10="","",C10) -> 2021-05-12 | D28: =IF(C11="","",C11) -> 12
C31: DAYS | D31: =IF(C24="","",'HOJA DE DATOS'!B10) -> 102.2655938
C32: WEEKS | D32: =IF(D31="","",D31/7) -> 14.60937054
C33: MONTH | D33: =IF(D31="","",D31/30) -> 3.408853126
C34: UF (Needs/dia) | D34: =(IF(C23="","",'HOJA DE DATOS'!F8)) -> 0.97
C35: ADG gr/day (rec) | D35: =IF(C24="","",'HOJA DE DATOS'!G8) -> 308
C39: DATE | D39: BW (Kg)
C40: =IF(C10="","",'SIMULACION OVINO'!C10+'HOJA DE DATOS'!B10) -> 2021-08-22T06:22:27.304 | D40: =IF(C12="","",C12) -> 28

Sheet SIMULACION CAPRINO
A7: REARING SHEEP SIMULATION
A9: INITIAL DATA | B9: PERIOD
B10: INITIAL DATE
B11: INITIAL BODY WEIGHT | D11: =IF(C9="","",'HOJA DE DATOS'!E75) -> 
B12: TARGET BODY WEIGT
A14: RECOMENDATIONS | B14: PESOS PERIODO | C14: =IF(D11="","",D11) -> 
B15: GMD RECOMENDADA | C15: =IF(C9="","",'HOJA DE DATOS'!E76) -> 
B16: CMD ESTIMADO (gr/dia) | C16: =IF(C9="RECRIA","",(IF('HOJA DE DATOS'!E54="","",'HOJA DE DATOS'!E54))) -> 
C18: UFL | D18: Kg/day
A19: RATION | C19: =IF(B19="","",VLOOKUP(B19,PIENSOS!C11:D29,2,FALSE)) -> 
B23: UFL DIET | C23: =IF(C11="","",'HOJA DE DATOS'!D51) ->  | E23: =IF('HOJA DE DATOS'!F55="","",'HOJA DE DATOS'!F55) -> 
B24: ADG (gr/day) | C24: =IF('HOJA DE DATOS'!D54<0,"",IF('HOJA DE DATOS'!D54="","",'HOJA DE DATOS'!D54)) ->  | E24: =IF('HOJA DE DATOS'!G55="","",'HOJA DE DATOS'!G55) -> 
C27: DATE | D27: BW (Kg)
C28: =IF(C10="","",C10) ->  | D28: =IF(C11="","",C11) -> 
C32: DAYS | D32: =IF(C24="","",'HOJA DE DATOS'!B56) -> 
C33: WEEKS | D33: =IF(D32="","",D32/7) -> 
C34: MONTH | D34: =IF(D32="","",D32/30) -> 
C35: UF (Needs/dia) | D35: =(IF(C23="","",'HOJA DE DATOS'!F54)) -> 
C36: ADG gr/day (rec) | D36: =IF(C24="","",'HOJA DE DATOS'!G54) -> 
C40: DATE | D40: BW (Kg)
C41: =IF(C10="","",'SIMULACION CAPRINO'!C10+'HOJA DE DATOS'!B56) ->  | D41: =IF(C12="","",C12) -> 

Sheet PIENSOS
A1: FEED
A3: PRESTARTER | B3: COD IRIS | C3: NAME | D3: UFV
A4: OVIBABY | B4: 1099HGR. | C4: =A4 -> OVIBABY | D4: 1.05
A5: LACTACOR COPOS | B5: 1439HGR. | C5: LACTACOR COPOS | D5: 1.035
A6: NANTACOR INICIACION | B6: 1100GGR. | C6: NANTACOR INICIACION | D6: 1.04
C7: =IF(A7="","",A7) -> 
A10: GROW UP | B10: COD IRIS | C10: NAME | D10: UFV
A11: NANTACOR INICIACION | B11: 1100GGR. | C11: =A11 -> NANTACOR INICIACION | D11: 1.04
A12: NANTACOR | B12: 1101GGR. | C12: NANTACOR | D12: 0.995
A13: NANTACOR CEBIAL | B13: 1102GGR. | C13: =A13 -> NANTACOR CEBIAL | D13: 0.93
A14: NANTACOR C. PESADO | B14: 1105GGR. | C14: =A14 -> NANTACOR C. PESADO | D14: 0.975
A15: NANTACOR C. INTENSIVO | B15: 1104GGR. | C15: NANTACOR C. INTENSIVO | D15: 0.995
A16: NANTACOR C. LIGERO | B16: 1103GGR. | C16: NANTACOR C. LIGERO | D16: 1.015
A17: NANTACOR C. LIGERO ESP. | B17: 1257GGR. | C17: NANTACOR C. LIGERO ESP. | D17: 1.035
A18: COMPETENCIA CRIA 1 | C18: =IF(A18="","",A18) -> COMPETENCIA CRIA 1 | D18: 0.95
C19: =IF(A19="","",A19) -> 
A21: REPLACEMENT PERIOD
A22: OVIRECRIA | B22: 1808GGR. | C22: =A22 -> OVIRECRIA | D22: 0.88
A23: OVIRECRIA CONT. | B23: 1615GGR. | C23: =A23 -> OVIRECRIA CONT. | D23: 0.82
A24: CAPRIRECRIA | B24: 1610GGR. | C24: CAPRIRECRIA | D24: 0.89
A25: CAPRIRECRIA CONT. | B25: 1616GGR. | C25: CAPRIRECRIA CONT. | D25: 0.82
A26: KOMPLET RECRIA | B26: 1819GGR. | C26: KOMPLET RECRIA | D26: 0.91
A27: COMPETENCIA RECRIA 1 | C27: =IF(A27="","",A27) -> COMPETENCIA RECRIA 1 | D27: 0.84
C28: =IF(A28="","",A28) -> 
A30: NANTAMILK SUPREME
A31: NANTAMILK TURBOLAC
A34: STRAW

Sheet MODULO
